[Event "IIFL Wealth 4th Mumbai GM"]
[Site "Mumbai"]
[Date "2019.01.05"]
[Round "7"]
[White "Sarwat, Walaa"]
[Black "Lama, Milan"]
[Result "1-0"]
[ECO "B35"]
[WhiteElo "2276"]
[BlackElo "1897"]
[Annotator "NA"]
[PlyCount "111"]
[EventDate "2018.12.30"]
[EventType "swiss"]
[EventCountry "IND"]
[SourceTitle "playchess.com"]
[Source "ChessBase"]
[SourceQuality "1"]
[TimeControl "40/5400+30:1800+30"]

1. e4 {[%emt 0:00:00]} c5 {[%emt 0:00:00]} 2. Nf3 {[%emt 0:00:03]} g6 {[%emt 0:00:10]} 3. Nc3 {[%emt 0:01:41]} Bg7 {[%emt 0:00:34]} 4. d4 {[%emt 0:00:29]} cxd4 {[%emt 0:00:26]} 5. Nxd4 {[%emt 0:00:14]} Nc6 {[%emt 0:00:15]} 6. Be3 {[%emt 0:00:15]} Nf6 {[%emt 0:00:17]} 7. Bc4 {[%emt 0:03:18]} Qa5 {[%emt 0:01:39]} 8. O-O {[%emt 0:00:23]} O-O {[%emt 0:00:21]} 9. Bb3 {[%emt 0:00:33]} d6 {[%emt 0:00:22]} 10. h3 {[%emt 0:00:17]} Bd7 {[%emt 0:00:42]} 11. f4 {[%emt 0:03:09]} Nxd4 {[%emt 0:01:55]} 12. Bxd4 {[%emt 0:00:33]} Bc6 {[%emt 0:03:08]} 13. Qd3 {[%emt 0:04:54]} Rad8 {[%emt 0:00:56]} 14. Qe3 {[%emt 0:11:16]} Nd7 {[%emt 0:06:29]} 15. Bxg7 {[%emt 0:03:01]} Kxg7 {[%emt 0:00:07]} 16. Qd4+ {[%emt 0:09:46]} f6 {[%emt 0:07:08]} 17. Qd2 {[%emt 0:01:24]} Nc5 {[%emt 0:05:35]} 18. Kh2 {[%emt 0:04:15]} Qc7 {[%emt 0:11:09]} 19. Rae1 {[%emt 0:03:31]} Nxb3 {[%emt 0:06:58]} 20. axb3 {[%emt 0:03:32]} e6 {[%emt 0:01:38]} 21. Qd4 {[%emt 0:02:35]} a6 {[%emt 0:00:53]} 22. Rf2 {[%emt 0:04:10]} Rf7 {[%emt 0:04:49]} 23. Kg1 {[%emt 0:01:01]} Qa5 {[%emt 0:18:05]} 24. b4 {[%emt 0:03:09]} Qc7 {[%emt 0:01:10]} 25. Rd2 {[%emt 0:06:45]} Bb5 {[%emt 0:04:37]} 26. Nxb5 {[%emt 0:03:32]} axb5 {[%emt 0:00:09]} 27. c3 {[%emt 0:00:36]} Rfd7 {[%emt 0:02:04]} 28. Ra1 {[%emt 0:01:10]} d5 {[%emt 0:02:44]} 29. e5 {[%emt 0:00:25]} fxe5 {[%emt 0:01:30]} 30. fxe5 {[%emt 0:00:49]} Rf8 {[%emt 0:02:40]} 31. Ra5 {[%emt 0:05:37]} Rdf7 {[%emt 0:02:43]} 32. Re2 {[%emt 0:02:46]} Rf4 {[%emt 0:01:52]} 33. Qd3 {[%emt 0:08:51]} Qf7 {[%emt 0:05:52]} 34. Kh2 {[%emt 0:06:29]} Rf1 {[%emt 0:00:54]} 35. Qg3 {[%emt 0:00:29]} Rh1+ {[%emt 0:02:57]} 36. Kxh1 {[%emt 0:00:14]} Qf1+ {[%emt 0:00:04]} 37. Kh2 {[%emt 0:00:07]} Qxe2 {[%emt 0:00:04]} 38. Ra7 {[%emt 0:01:10]} Rf7 {[%emt 0:00:19]} 39. b3 {[%emt 0:01:19]} h6 {[%emt 0:01:55]} 40. Ra8 {[%emt 0:00:00]} Rf5 {[%emt 0:00:00]} 41. Rb8 {[%emt 0:01:57]} Rg5 {[%emt 0:14:45]} 42. Rxb7+ {[%emt 0:00:28]} Kg8 {[%emt 0:00:03]} 43. Qf3 {[%emt 0:02:47]} Qxe5+ {[%emt 0:00:19]} 44. Kg1 {[%emt 0:01:31]} Rf5 {[%emt 0:01:42]} 45. Qd3 {[%emt 0:01:30]} Qe1+ {[%emt 0:06:39]} 46. Kh2 {[%emt 0:00:18]} Qe5+ {[%emt 0:00:03]} 47. Qg3 {[%emt 0:01:02]} d4 {[%emt 0:02:04]} 48. c4 {[%emt 0:18:32]} bxc4 {[%emt 0:04:17]} 49. bxc4 {[%emt 0:00:36]} Qxg3+ {[%emt 0:05:22]} 50. Kxg3 {[%emt 0:00:09]} Kf8 {[%emt 0:00:20]} 51. c5 {[%emt 0:02:11]} Ke8 {[%emt 0:00:16]} 52. c6 {[%emt 0:01:00]} d3 {[%emt 0:02:56]} 53. Rd7 {[%emt 0:01:22]} Rb5 {[%emt 0:01:34]} 54. Rxd3 {[%emt 0:00:28]} Rb8 {[%emt 0:00:56]} 55. b5 {[%emt 0:00:45]} Ke7 {[%emt 0:00:33]} 56. c7 {[%emt 0:00:15]} 1-0

[Event "IIFL Wealth 4th Mumbai GM"]
[Site "Mumbai"]
[Date "2019.01.05"]
[Round "7"]
[White "Balasubramaniam H"]
[Black "Das, Sayantan"]
[Result "0-1"]
[ECO "B22"]
[WhiteElo "2270"]
[BlackElo "2453"]
[Annotator "ChessBase"]
[PlyCount "132"]
[EventDate "2018.12.30"]
[EventType "swiss"]
[EventCountry "IND"]
[SourceTitle "playchess.com"]
[Source "ChessBase"]
[SourceQuality "1"]
[TimeControl "40/5400+30:1800+30"]

1. e4 {[%emt 0:00:00]} c5 {[%emt 0:00:00]} 2. c3 {[%emt 0:00:00]} e6 {[%emt 0:01:59]} 3. d4 {[%emt 0:00:00]} d5 {[%emt 0:00:05]} 4. exd5 {[%emt 0:00:01]} exd5 {[%emt 0:00:31]} 5. Nf3 {[%emt 0:02:32]} Nc6 {[%emt 0:01:16]} 6. Be2 {[%emt 0:00:36]} Nf6 {[%emt 0:03:41]} 7. O-O {[%emt 0:00:36]} Be6 {[%emt 0:03:02]} 8. dxc5 {[%emt 0:16:13]} Bxc5 {[%emt 0:01:04]} 9. b4 {[%emt 0:00:15]} Bb6 {[%emt 0:05:40]} 10. b5 {[%emt 0:01:51]} Ne7 {[%emt 0:02:49]} 11. Nd4 {[%emt 0:00:57]} O-O {[%emt 0:01:50]} 12. Nd2 {[%emt 0:05:18]} Rc8 {[%emt 0:03:26]} 13. Bb2 {[%emt 0:01:02]} Nf5 {[%emt 0:05:04]} 14. Bd3 {[%emt 0:01:47]} Nxd4 {[%emt 0:05:45]} 15. cxd4 {[%emt 0:00:02]} Bg4 {[%emt 0:01:11]} 16. f3 {[%emt 0:02:48]} Bh5 {[%emt 0:01:40]} 17. a4 {[%emt 0:03:07]} Bg6 {[%emt 0:08:26]} 18. Bxg6 {[%emt 0:01:05]} hxg6 {[%emt 0:01:50]} 19. Nb3 {[%emt 0:00:21]} Nh5 {[%emt 0:11:03]} 20. Qd2 {[%emt 0:03:28]} Rc4 {[%emt 0:03:14]} 21. g4 {[%emt 0:04:24]} Nf6 {[%emt 0:01:42]} 22. Qd3 {[%emt 0:02:12]} Rc8 {[%emt 0:07:46]} 23. Nc5 {[%emt 0:04:59]} Nd7 {[%emt 0:04:50]} 24. Nxd7 {[%emt 0:05:29]} Qxd7 {[%emt 0:00:02]} 25. Rac1 {[%emt 0:02:10]} Rfe8 {[%emt 0:04:46]} 26. Qd2 {[%emt 0:05:20]} Rxc1 {[%emt 0:02:48]} 27. Rxc1 {[%emt 0:00:06]} Qe7 {[%emt 0:00:38]} 28. Kf1 {[%emt 0:02:20]} Ba5 {[%emt 0:06:41]} 29. Bc3 {[%emt 0:03:08]} Bxc3 {[%emt 0:00:20]} 30. Rxc3 {[%emt 0:01:23]} Qb4 {[%emt 0:00:59]} 31. Qc2 {[%emt 0:00:05]} Kh7 {[%emt 0:01:57]} 32. Kg2 {[%emt 0:08:49]} Qxd4 {[%emt 0:01:28]} 33. Rd3 {[%emt 0:00:04]} Qe5 {[%emt 0:01:56]} 34. Qd2 {[%emt 0:00:05]} Rd8 {[%emt 0:00:46]} 35. Rd4 {[%emt 0:00:50]} b6 {[%emt 0:01:12]} 36. Kg1 {[%emt 0:04:29]} Qd6 {[%emt 0:03:30]} 37. Kg2 {[%emt 0:00:32]} Qc5 {[%emt 0:00:24]} 38. Qd3 {[%emt 0:07:03]} Rd6 {[%emt 0:00:52]} 39. Qd2 {[%emt 0:00:59]} Rd7 {[%emt 0:00:58]} 40. Qd3 {[%emt 0:00:00]} Qd6 {[%emt 0:00:00]} 41. Qd2 {[%emt 0:06:24]} Qe5 {[%emt 0:01:00]} 42. Qd3 {[%emt 0:01:21]} Rd6 {[%emt 0:07:38]} 43. Qd2 {[%emt 0:03:42]} g5 {[%emt 0:01:48]} 44. Qd3+ {[%emt 0:05:27]} Kg8 {[%emt 0:00:24]} 45. Qd2 {[%emt 0:01:01]} Rh6 {[%emt 0:00:40]} 46. Kh1 {[%emt 0:02:16]} Rd6 {[%emt 0:02:43]} 47. Kg2 {[%emt 0:00:10]} Rd7 {[%emt 0:00:43]} 48. Qd3 {[%emt 0:00:41]} Rd8 {[%emt 0:00:17]} 49. Qd2 {[%emt 0:00:15]} Rd6 {[%emt 0:00:10]} 50. Kg1 {[%emt 0:03:02]} g6 {[%emt 0:05:58]} 51. Kg2 {[%emt 0:00:25]} Kg7 {[%emt 0:00:13]} 52. Qd3 {[%emt 0:00:31]} Rd8 {[%emt 0:00:38]} 53. Qd2 {[%emt 0:00:12]} Rh8 {[%emt 0:07:38]} 54. f4 {[%emt 0:02:30]} gxf4 {[%emt 0:00:22]} 55. Rxd5 {[%emt 0:00:05]} f3+ {[%emt 0:01:17]} 56. Kf1 {[%emt 0:02:01]} Rxh2 {[%emt 0:03:42]} 57. Rxe5 {[%emt 0:00:31]} Rxd2 {[%emt 0:00:02]} 58. Re7 {[%emt 0:00:05]} Kf6 {[%emt 0:01:14]} 59. Rxa7 {[%emt 0:02:52]} Kg5 {[%emt 0:00:09]} 60. a5 {[%emt 0:00:53]} bxa5 {[%emt 0:00:11]} 61. Rxf7 {[%emt 0:01:04]} Kxg4 {[%emt 0:00:15]} 62. b6 {[%emt 0:00:24]} Rb2 {[%emt 0:00:20]} 63. b7 {[%emt 0:00:15]} g5 {[%emt 0:00:19]} 64. Ke1 {[%emt 0:00:43]} Kg3 {[%emt 0:00:31]} 65. Rf5 {[%emt 0:00:02]} g4 {[%emt 0:00:13]} 66. Rxa5 {[%emt 0:00:05]} f2+ {[%emt 0:00:11]} 0-1

[Event "IIFL Wealth 4th Mumbai GM"]
[Site "Mumbai"]
[Date "2019.01.05"]
[Round "7"]
[White "Ziatdinov, Raset"]
[Black "Sekar, B."]
[Result "1/2-1/2"]
[ECO "B92"]
[WhiteElo "2252"]
[BlackElo "2137"]
[Annotator "NA"]
[PlyCount "135"]
[EventDate "2018.12.30"]
[EventType "swiss"]
[EventCountry "IND"]
[SourceTitle "playchess.com"]
[Source "ChessBase"]
[SourceQuality "1"]
[TimeControl "40/5400+30:1800+30"]

1. e4 {[%emt 0:00:00]} c5 {[%emt 0:00:00]} 2. Nf3 {[%emt 0:00:00]} d6 {[%emt 0:00:00]} 3. d4 {[%emt 0:00:00]} cxd4 {[%emt 0:00:00]} 4. Nxd4 {[%emt 0:00:00]} Nf6 {[%emt 0:00:00]} 5. Nc3 {[%emt 0:00:00]} a6 {[%emt 0:00:00]} 6. Be2 {[%emt 0:00:03]} e5 {[%emt 0:00:00]} 7. Nb3 {[%emt 0:00:05]} Be7 {[%emt 0:00:07]} 8. O-O {[%emt 0:00:06]} O-O {[%emt 0:00:03]} 9. Be3 {[%emt 0:00:09]} Be6 {[%emt 0:00:30]} 10. Qd2 {[%emt 0:00:05]} Nbd7 {[%emt 0:01:14]} 11. a4 {[%emt 0:00:07]} Nb6 {[%emt 0:07:30]} 12. Rfd1 {[%emt 0:00:33]} Rc8 {[%emt 0:02:08]} 13. Bg5 {[%emt 0:11:17]} Nbd7 {[%emt 0:06:17]} 14. a5 {[%emt 0:04:57]} Qc7 {[%emt 0:00:52]} 15. Nc1 {[%emt 0:01:12]} h6 {[%emt 0:13:17]} 16. Be3 {[%emt 0:00:11]} Nc5 {[%emt 0:04:04]} 17. Bf3 {[%emt 0:00:12]} Qc6 {[%emt 0:03:23]} 18. Nd5 {[%emt 0:16:25]} Bxd5 {[%emt 0:00:46]} 19. exd5 {[%emt 0:00:08]} Qc7 {[%emt 0:01:05]} 20. Qe1 {[%emt 0:04:46]} Nh7 {[%emt 0:07:06]} 21. Be2 {[%emt 0:13:03]} f5 {[%emt 0:01:07]} 22. c4 {[%emt 0:00:36]} Nd7 {[%emt 0:10:11]} 23. Nb3 {[%emt 0:03:03]} f4 {[%emt 0:02:20]} 24. Bd2 {[%emt 0:00:32]} f3 {[%emt 0:00:05]} 25. Bxf3 {[%emt 0:01:41]} Qxc4 {[%emt 0:00:13]} 26. Ra3 {[%emt 0:00:20]} Ng5 {[%emt 0:10:57]} 27. Bxg5 {[%emt 0:00:31]} Bxg5 {[%emt 0:00:02]} 28. Nd2 {[%emt 0:05:01]} Bxd2 {[%emt 0:00:43]} 29. Qxd2 Qf4 {[%emt 0:00:35]} 30. g3 {[%emt 0:08:20]} Qxd2 {[%emt 0:03:32]} 31. Rxd2 {[%emt 0:00:01]} Rc4 {[%emt 0:00:40]} 32. Be2 {[%emt 0:08:02]} Rb4 {[%emt 0:00:21]} 33. Rc2 {[%emt 0:00:47]} Nc5 {[%emt 0:03:28]} 34. Kf1 {[%emt 0:01:36]} Rb8 {[%emt 0:01:45]} 35. Ke1 {[%emt 0:01:43]} b6 {[%emt 0:00:36]} 36. axb6 {[%emt 0:00:38]} R8xb6 {[%emt 0:00:01]} 37. Ra2 {[%emt 0:00:12]} Kf8 {[%emt 0:06:32]} 38. Bc4 {[%emt 0:02:05]} Ke7 {[%emt 0:02:41]} 39. Kd1 {[%emt 0:00:35]} e4 {[%emt 0:03:58]} 40. Kc1 {[%emt 0:00:00]} Kf6 {[%emt 0:00:00]} 41. f3 {[%emt 0:04:50]} exf3 {[%emt 0:08:27]} 42. Ra3 {[%emt 0:00:09]} Nb3+ {[%emt 0:00:19]} 43. Bxb3 {[%emt 0:02:46]} Rxb3 {[%emt 0:00:37]} 44. Rc3 {[%emt 0:00:15]} Rxb2 {[%emt 0:03:30]} 45. Rxf3+ {[%emt 0:00:11]} Ke5 {[%emt 0:03:36]} 46. Rf7 {[%emt 0:02:48]} Rb7 {[%emt 0:05:56]} 47. Rxg7 {[%emt 0:00:55]} Rxg7 {[%emt 0:05:53]} 48. Kxb2 {[%emt 0:00:07]} Rf7 {[%emt 0:00:17]} 49. h4 {[%emt 0:00:30]} Ra7 {[%emt 0:04:02]} 50. g4 {[%emt 0:01:55]} a5 {[%emt 0:03:09]} 51. Rf3 {[%emt 0:02:54]} Kxd5 {[%emt 0:02:55]} 52. Rf5+ {[%emt 0:00:15]} Kc6 {[%emt 0:00:59]} 53. g5 {[%emt 0:02:22]} hxg5 {[%emt 0:00:06]} 54. hxg5 {[%emt 0:00:05]} d5 {[%emt 0:01:48]} 55. g6 {[%emt 0:00:24]} Rg7 {[%emt 0:01:45]} 56. Rf6+ {[%emt 0:00:26]} Kc5 {[%emt 0:00:04]} 57. Kc3 {[%emt 0:00:19]} a4 {[%emt 0:00:45]} 58. Ra6 {[%emt 0:01:07]} Kb5 {[%emt 0:00:03]} 59. Rd6 {[%emt 0:00:18]} Rc7+ {[%emt 0:01:11]} 60. Kd4 {[%emt 0:01:21]} a3 {[%emt 0:00:48]} 61. Rxd5+ {[%emt 0:01:49]} Kb4 {[%emt 0:00:05]} 62. Ke5 {[%emt 0:01:15]} Rc1 {[%emt 0:00:40]} 63. Rd4+ {[%emt 0:00:29]} Kb3 {[%emt 0:00:44]} 64. g7 {[%emt 0:00:18]} Rg1 {[%emt 0:00:05]} 65. Rd3+ {[%emt 0:00:22]} Kb4 {[%emt 0:00:03]} 66. Rxa3 {[%emt 0:00:32]} Kxa3 {[%emt 0:00:04]} 67. Kf6 {[%emt 0:00:06]} Rxg7 {[%emt 0:00:27]} 68. Kxg7 1/2-1/2

[Event "IIFL Wealth 4th Mumbai GM"]
[Site "Mumbai"]
[Date "2019.01.05"]
[Round "7"]
[White "Navalgund, Niranjan"]
[Black "Czebe, Attila"]
[Result "1-0"]
[ECO "A40"]
[WhiteElo "2240"]
[BlackElo "2417"]
[Annotator "NA"]
[PlyCount "86"]
[EventDate "2018.12.30"]
[EventType "swiss"]
[EventCountry "IND"]
[SourceTitle "playchess.com"]
[Source "ChessBase"]
[SourceQuality "1"]
[TimeControl "40/5400+30:1800+30"]

1. d4 {[%emt 0:00:00]} Nf6 {[%emt 0:00:00]} 2. c4 {[%emt 0:00:00]} e6 {[%emt 0:00:00]} 3. g3 {[%emt 0:00:00]} Bb4+ {[%emt 0:00:04]} 4. Bd2 {[%emt 0:00:00]} Bxd2+ {[%emt 0:00:41]} 5. Qxd2 {[%emt 0:00:19]} O-O {[%emt 0:03:17]} 6. Bg2 {[%emt 0:00:04]} d6 {[%emt 0:00:13]} 7. Nc3 {[%emt 0:00:11]} Qe7 {[%emt 0:00:45]} 8. Nf3 {[%emt 0:00:38]} Nbd7 {[%emt 0:02:44]} 9. O-O {[%emt 0:00:17]} c6 {[%emt 0:01:19]} 10. b3 {[%emt 0:27:56]} e5 {[%emt 0:01:51]} 11. dxe5 {[%emt 0:04:42]} dxe5 {[%emt 0:00:09]} 12. Rad1 {[%emt 0:01:39]} Nc5 {[%emt 0:01:57]} 13. b4 {[%emt 0:04:07]} Ne6 {[%emt 0:13:24]} 14. Qd6 {[%emt 0:02:58]} Qxd6 {[%emt 0:01:11]} 15. Rxd6 {[%emt 0:00:03]} e4 {[%emt 0:01:28]} 16. Nd4 {[%emt 0:06:15]} Ne8 {[%emt 0:10:24]} 17. Nxe6 {[%emt 0:00:02]} Bxe6 {[%emt 0:00:06]} 18. Rd4 {[%emt 0:00:40]} f5 {[%emt 0:00:04]} 19. g4 {[%emt 0:12:53]} g6 {[%emt 0:03:29]} 20. gxf5 {[%emt 0:00:20]} gxf5 {[%emt 0:00:03]} 21. f3 {[%emt 0:01:17]} a5 {[%emt 0:00:03]} 22. b5 {[%emt 0:01:04]} c5 {[%emt 0:00:31]} 23. Rdd1 {[%emt 0:00:16]} Bxc4 {[%emt 0:01:08]} 24. fxe4 {[%emt 0:00:12]} Ng7 {[%emt 0:02:01]} 25. exf5 {[%emt 0:01:50]} Nxf5 {[%emt 0:00:19]} 26. Bxb7 {[%emt 0:02:42]} Rab8 {[%emt 0:00:11]} 27. Bd5+ {[%emt 0:01:19]} Bxd5 {[%emt 0:00:02]} 28. Rxd5 {[%emt 0:00:09]} Ne3 {[%emt 0:00:16]} 29. Rg5+ {[%emt 0:00:20]} Kh8 {[%emt 0:00:00]} 30. Rf3 {[%emt 0:01:16]} Rg8 {[%emt 0:01:20]} 31. Rxg8+ {[%emt 0:05:02]} Rxg8+ {[%emt 0:00:04]} 32. Rg3 {[%emt 0:00:32]} Re8 {[%emt 0:00:13]} 33. Kf2 {[%emt 0:03:42]} Nf5 {[%emt 0:00:01]} 34. Rg5 {[%emt 0:00:53]} Rf8 {[%emt 0:00:02]} 35. e4 {[%emt 0:00:40]} Nd4+ {[%emt 0:00:11]} 36. Kg2 {[%emt 0:00:37]} c4 {[%emt 0:00:55]} 37. b6 {[%emt 0:09:11]} Rb8 {[%emt 0:00:18]} 38. Na4 {[%emt 0:00:28]} c3 {[%emt 0:01:39]} 39. Rc5 {[%emt 0:01:20]} c2 {[%emt 0:00:34]} 40. Kf2 {[%emt 0:00:00]} Kg7 {[%emt 0:00:00]} 41. Ke3 {[%emt 0:01:25]} Rd8 {[%emt 0:00:07]} 42. b7 {[%emt 0:00:51]} Nb5 {[%emt 0:00:21]} 43. Rxc2 {[%emt 0:00:33]} Nd6 {[%emt 0:00:17]} 1-0

[Event "IIFL Wealth 4th Mumbai GM"]
[Site "Mumbai"]
[Date "2019.01.05"]
[Round "7"]
[White "Praveen Kumar C"]
[Black "Gandhi, Anish"]
[Result "1/2-1/2"]
[ECO "E63"]
[WhiteElo "2233"]
[BlackElo "2134"]
[Annotator "NA"]
[PlyCount "112"]
[EventDate "2018.12.30"]
[EventType "swiss"]
[EventCountry "IND"]
[SourceTitle "playchess.com"]
[Source "ChessBase"]
[SourceQuality "1"]
[TimeControl "40/5400+30:1800+30"]

1. d4 {[%emt 0:00:00]} Nf6 {[%emt 0:00:00]} 2. c4 {[%emt 0:00:00]} g6 {[%emt 0:00:00]} 3. g3 {[%emt 0:00:00]} Bg7 {[%emt 0:00:20]} 4. Bg2 {[%emt 0:00:00]} O-O {[%emt 0:01:46]} 5. Nc3 {[%emt 0:00:00]} d6 {[%emt 0:02:51]} 6. Nf3 {[%emt 0:00:05]} Nc6 {[%emt 0:00:07]} 7. O-O {[%emt 0:00:12]} a6 {[%emt 0:00:05]} 8. h3 {[%emt 0:06:50]} Re8 {[%emt 0:13:35]} 9. a3 {[%emt 0:16:02]} Bf5 {[%emt 0:09:05]} 10. d5 {[%emt 0:01:47]} Na5 {[%emt 0:08:00]} 11. Nd2 {[%emt 0:00:13]} c5 {[%emt 0:00:48]} 12. dxc6 {[%emt 0:23:55]} Nxc6 {[%emt 0:01:26]} 13. Nb3 {[%emt 0:00:13]} Nd7 {[%emt 0:04:52]} 14. Be3 {[%emt 0:03:10]} Nde5 {[%emt 0:04:14]} 15. Nd2 {[%emt 0:00:18]} Rc8 {[%emt 0:09:32]} 16. Nd5 {[%emt 0:05:00]} Nd7 {[%emt 0:01:10]} 17. g4 {[%emt 0:01:18]} Be6 {[%emt 0:02:04]} 18. Rb1 {[%emt 0:00:31]} b5 {[%emt 0:02:02]} 19. cxb5 {[%emt 0:02:33]} axb5 {[%emt 0:00:04]} 20. Nf4 {[%emt 0:00:04]} Ba2 {[%emt 0:01:40]} 21. Ra1 {[%emt 0:00:32]} Bc4 {[%emt 0:00:11]} 22. Rb1 {[%emt 0:06:50]} Ba2 {[%emt 0:09:53]} 23. Ra1 {[%emt 0:01:07]} Bc4 {[%emt 0:00:23]} 24. b3 {[%emt 0:00:47]} Be6 {[%emt 0:04:07]} 25. Nxe6 {[%emt 0:00:47]} fxe6 {[%emt 0:00:05]} 26. Rc1 {[%emt 0:00:03]} Nd4 {[%emt 0:03:05]} 27. Nf3 {[%emt 0:01:10]} Rxc1 {[%emt 0:02:05]} 28. Bxc1 {[%emt 0:00:30]} Nxf3+ {[%emt 0:02:08]} 29. Bxf3 {[%emt 0:00:07]} Qb6 {[%emt 0:00:18]} 30. Be3 {[%emt 0:01:22]} Qa6 {[%emt 0:00:57]} 31. Qc2 {[%emt 0:12:36]} Rc8 {[%emt 0:04:39]} 32. Qa2 {[%emt 0:00:10]} b4 {[%emt 0:00:51]} 33. a4 {[%emt 0:00:08]} d5 {[%emt 0:04:08]} 34. Rc1 {[%emt 0:02:12]} Bc3 {[%emt 0:00:53]} 35. Qc2 {[%emt 0:01:20]} Ne5 {[%emt 0:01:08]} 36. Bg2 {[%emt 0:00:14]} Nc6 {[%emt 0:01:56]} 37. h4 {[%emt 0:01:14]} Rf8 {[%emt 0:00:57]} 38. Qd3 {[%emt 0:05:15]} Qxd3 {[%emt 0:01:34]} 39. exd3 {[%emt 0:00:02]} Nd4 {[%emt 0:00:20]} 40. Bxd4 {[%emt 0:00:00]} Bxd4 {[%emt 0:00:00]} 41. Rc2 {[%emt 0:05:13]} Kg7 {[%emt 0:03:46]} 42. Kf1 {[%emt 0:07:19]} h6 {[%emt 0:01:50]} 43. g5 {[%emt 0:01:26]} Bc3 {[%emt 0:04:10]} 44. Re2 {[%emt 0:02:32]} Kf7 {[%emt 0:01:58]} 45. gxh6 {[%emt 0:01:08]} Rh8 {[%emt 0:00:57]} 46. a5 {[%emt 0:02:59]} Rxh6 {[%emt 0:03:10]} 47. Bh3 {[%emt 0:00:39]} g5 {[%emt 0:01:28]} 48. h5 {[%emt 0:00:34]} e5 {[%emt 0:05:59]} 49. Ra2 {[%emt 0:03:12]} Rxh5 {[%emt 0:07:24]} 50. Bc8 {[%emt 0:01:32]} Rh1+ {[%emt 0:00:52]} 51. Kg2 {[%emt 0:00:43]} Ra1 {[%emt 0:00:29]} 52. Rxa1 {[%emt 0:00:19]} Bxa1 {[%emt 0:00:06]} 53. a6 {[%emt 0:00:15]} Bd4 {[%emt 0:00:06]} 54. f3 {[%emt 0:00:13]} e6 {[%emt 0:00:45]} 55. Kg3 {[%emt 0:00:17]} Kf6 {[%emt 0:00:11]} 56. Kg4 {[%emt 0:00:12]} Bc5 {[%emt 0:00:10]} 1/2-1/2

[Event "IIFL Wealth 4th Mumbai GM"]
[Site "Mumbai"]
[Date "2019.01.05"]
[Round "7"]
[White "Mahalakshmi, M."]
[Black "Nayem, Haque"]
[Result "1-0"]
[ECO "A48"]
[WhiteElo "2219"]
[BlackElo "2083"]
[Annotator "NA"]
[PlyCount "77"]
[EventDate "2018.12.30"]
[EventType "swiss"]
[EventCountry "IND"]
[SourceTitle "playchess.com"]
[Source "ChessBase"]
[SourceQuality "1"]
[TimeControl "40/5400+30:1800+30"]

1. d4 {[%emt 0:00:00]} Nf6 {[%emt 0:00:00]} 2. Nf3 {[%emt 0:00:00]} g6 {[%emt 0:00:00]} 3. Bg5 {[%emt 0:00:27]} Bg7 {[%emt 0:00:00]} 4. Nbd2 {[%emt 0:00:14]} d5 {[%emt 0:00:09]} 5. e3 {[%emt 0:00:58]} O-O {[%emt 0:00:11]} 6. Bd3 {[%emt 0:01:40]} c6 {[%emt 0:08:35]} 7. c4 {[%emt 0:02:50]} Qb6 {[%emt 0:02:07]} 8. Qc2 {[%emt 0:02:52]} Be6 {[%emt 0:01:50]} 9. O-O {[%emt 0:01:27]} Nbd7 {[%emt 0:00:34]} 10. Rac1 {[%emt 0:03:32]} Qd8 {[%emt 0:05:43]} 11. Qb3 {[%emt 0:03:39]} dxc4 {[%emt 0:00:56]} 12. Bxc4 {[%emt 0:00:32]} Bxc4 {[%emt 0:00:11]} 13. Nxc4 {[%emt 0:00:30]} Qc8 {[%emt 0:12:34]} 14. Rfd1 {[%emt 0:05:31]} h6 {[%emt 0:09:05]} 15. Bh4 {[%emt 0:01:58]} g5 {[%emt 0:01:04]} 16. Bg3 {[%emt 0:00:45]} Ne4 {[%emt 0:01:10]} 17. Be5 {[%emt 0:02:55]} g4 {[%emt 0:02:34]} 18. Bxg7 {[%emt 0:06:40]} Kxg7 {[%emt 0:01:18]} 19. Nfd2 {[%emt 0:02:05]} Ndf6 {[%emt 0:03:59]} 20. Nxe4 {[%emt 0:02:54]} Nxe4 {[%emt 0:00:01]} 21. Ne5 {[%emt 0:00:09]} Nd6 {[%emt 0:05:50]} 22. Nd3 {[%emt 0:02:57]} e6 {[%emt 0:05:38]} 23. Nf4 {[%emt 0:02:14]} Qd8 {[%emt 0:00:45]} 24. Qd3 {[%emt 0:06:36]} Kg8 {[%emt 0:02:56]} 25. Rc5 {[%emt 0:03:52]} Qe7 {[%emt 0:00:59]} 26. Qe2 {[%emt 0:02:04]} f5 {[%emt 0:00:36]} 27. Ng6 {[%emt 0:01:34]} Qf6 {[%emt 0:00:44]} 28. Nxf8 {[%emt 0:01:46]} Rxf8 {[%emt 0:00:11]} 29. f3 {[%emt 0:01:07]} h5 {[%emt 0:00:14]} 30. Rf1 {[%emt 0:02:08]} Rf7 {[%emt 0:00:14]} 31. b3 {[%emt 0:02:40]} Rg7 {[%emt 0:03:07]} 32. Qe1 {[%emt 0:05:42]} h4 {[%emt 0:02:02]} 33. fxg4 {[%emt 0:02:32]} Rxg4 {[%emt 0:00:02]} 34. Qe2 {[%emt 0:01:42]} Qg6 {[%emt 0:01:03]} 35. Rf4 {[%emt 0:04:33]} Rg5 {[%emt 0:02:32]} 36. Rxh4 {[%emt 0:00:55]} Ne4 {[%emt 0:00:07]} 37. Rc1 {[%emt 0:03:08]} Kf7 {[%emt 0:05:39]} 38. b4 {[%emt 0:03:55]} a6 {[%emt 0:01:53]} 39. a4 {[%emt 0:00:47]} 1-0